bitfinex/quotes_BTCUSD_20220204
["timestamp","ask_amount","ask_price","bid_price","bid_amount"]
[1643974827875,0.05,37963.0,37960.0,0.065852]
[1643974828079,0.29336451,37964.0,37960.0,0.065852]
[1643974828273,0.05,37961.0,37960.0,0.065852]
[1643974828676,0.396872,37961.0,37960.0,0.06688268]
[1643974829074,0.446872,37961.0,37960.0,0.06688268]
[1643974829575,0.446872,37961.0,37960.0,0.065852]
[1643974829777,0.05,37961.0,37959.0,0.0010307]
[1643974830778,0.05,37961.0,37957.0,0.065858]
[1643974830979,0.05,37961.0,37958.0,0.00123457]
[1643974831179,0.05,37961.0,37958.0,0.00103071]
[1643974831418,0.05,37961.0,37958.0,0.00123457]
[1643974832018,0.05,37961.0,37958.0,0.00020386]
[1643974832221,0.05,37961.0,37958.0,0.05103072]
[1643974832418,0.05,37961.0,37958.0,0.05123458]
[1643974832617,0.05,37961.0,37958.0,0.00123458]
[1643974832818,0.05,37961.0,37946.0,0.03405618]
[1643974833023,0.396872,37953.0,37946.0,0.03405618]
[1643974833226,1.90421192,37960.0,37951.0,0.00020411]
[1643974833227,0.396872,37952.0,37951.0,0.00020411]
[1643974833423,0.396872,37952.0,37947.0,0.26579577]
[1643974833424,0.05,37952.0,37947.0,0.26579577]
[1643974833621,0.42141192,37959.0,37947.0,0.346872]
[1643974833821,0.27214599,37953.0,37947.0,0.00020411]
[1643974834019,0.27214599,37953.0,37946.0,0.03426029]
[1643974834221,0.27214599,37953.0,37952.0,0.22419975]
[1643974834420,0.66901799,37953.0,37952.0,0.22419975]
[1643974834619,0.66901799,37953.0,37952.0,0.27419975]
[1643974835372,0.66901799,37953.0,37952.0,0.05]
[1643974835572,0.346872,37952.0,37949.0,0.00020411]
[1643974835776,0.32214599,37953.0,37951.0,0.00053209]
[1643974835973,0.346872,37952.0,37951.0,0.00053209]
[1643974836176,0.61299492,37952.0,37951.0,0.00053209]
[1643974836575,0.346872,37952.0,37951.0,0.00053209]
[1643974836773,0.346872,37952.0,37947.0,0.00020411]
[1643974836975,0.346872,37952.0,37950.0,0.00103006]
[1643974836976,0.6,37951.0,37950.0,0.00103006]
[1643974837175,0.946872,37951.0,37950.0,0.00103006]
[1643974837978,0.896872,37951.0,37948.0,0.00020411]
[1643974838176,0.38801799,37953.0,37949.0,0.00103007]
[1643974838380,0.346872,37952.0,37949.0,0.00103007]
[1643974839218,0.346872,37952.0,37948.0,0.00020411]
[1643974839419,0.346872,37952.0,37949.0,0.00103007]
[1643974840321,0.346872,37952.0,37948.0,0.00020411]
[1643974840521,0.32214599,37953.0,37947.0,0.05020411]
[1643974840722,0.37214599,37953.0,37949.0,0.00103007]
[1643974841725,0.37214599,37953.0,37947.0,0.00020411]
[1643974841927,0.37214599,37953.0,37949.0,0.00103006]
[1643974842127,0.37214599,37953.0,37949.0,0.22024415]
[1643974842326,0.37214599,37953.0,37949.0,0.27024415]
[1643974842577,0.37214599,37953.0,37949.0,0.05123417]
[1643974842772,0.32214599,37953.0,37948.0,0.05020411]
[1643974842971,0.05,37949.0,37947.0,0.00020411]
[1643974843172,0.05,37949.0,37946.0,0.01375825]
[1643974843369,0.05,37949.0,37947.0,0.346872]
[1643974843573,0.05,37949.0,37947.0,0.62799813]
[1643974843770,0.05,37949.0,37947.0,0.28112613]
[1643974844375,0.32214599,37953.0,37947.0,0.28112613]
[1643974844376,0.05,37952.0,37947.0,0.28112613]
[1643974844774,0.32214599,37953.0,37947.0,0.28112613]
[1643974844974,0.37214599,37953.0,37947.0,0.28112613]
[1643974845374,0.37214599,37953.0,37948.0,0.00103008]
[1643974845577,0.37214599,37953.0,37948.0,0.00123419]
[1643974845875,0.32214599,37953.0,37948.0,0.00123419]
[1643974846078,0.37214599,37953.0,37948.0,0.00123419]
[1643974846318,0.37214599,37953.0,37948.0,0.00020411]
[1643974846523,0.37214599,37953.0,37949.0,0.00103007]
[1643974846719,0.32214599,37953.0,37949.0,0.00103007]
[1643974846919,0.05,37952.0,37949.0,0.00103007]
[1643974847318,0.32214599,37953.0,37949.0,0.00103007]
[1643974847522,0.09727198,37950.0,37948.0,0.00020411]
[1643974847718,0.09727198,37950.0,37949.0,0.00103006]
[1643974847922,0.14727198,37950.0,37949.0,0.00103006]
[1643974848121,0.32214599,37953.0,37949.0,0.00103006]
[1643974848320,0.05,37950.0,37949.0,0.00103006]
[1643974848723,0.05,37950.0,37947.0,0.00020411]
[1643974848724,0.396872,37950.0,37947.0,0.00020411]
[1643974848921,0.396872,37950.0,37946.0,0.01375825]
[1643974848922,0.05,37950.0,37948.0,0.00103009]
[1643974849921,0.13443719,37950.0,37948.0,0.00020411]
[1643974850172,0.13443719,37950.0,37947.0,0.0012342]
[1643974850371,0.13443719,37950.0,37947.0,0.00103009]
[1643974850573,0.13443719,37950.0,37947.0,0.0012342]
[1643974850574,0.08443719,37950.0,37947.0,0.0012342]
[1643974850771,0.13443719,37950.0,37947.0,0.25527645]
[1643974850973,0.32214599,37953.0,37947.0,0.25527645]
[1643974851171,0.32214599,37953.0,37947.0,0.00020411]
[1643974851376,0.32214599,37953.0,37947.0,0.0010301]
[1643974851570,0.32214599,37953.0,37947.0,0.00123421]
[1643974851972,0.05,37952.0,37947.0,0.00123421]
[1643974852170,0.05,37952.0,37947.0,0.26148947]
[1643974852375,0.05,37952.0,37947.0,0.05020411]
[1643974852571,0.05,37952.0,37948.0,0.00103009]
[1643974852772,0.05,37952.0,37948.0,0.0012342]
[1643974852971,0.05,37952.0,37948.0,0.00103009]
[1643974853173,0.45,37949.0,37948.0,0.00103009]
[1643974853373,0.05,37952.0,37948.0,0.00103009]
[1643974853573,0.05,37951.0,37948.0,0.00020411]
[1643974853815,0.05,37952.0,37947.0,0.00123421]
[1643974854020,0.05,37952.0,37947.0,0.0010301]
[1643974854217,0.05,37952.0,37947.0,0.00123421]
[1643974854518,0.05,37952.0,37947.0,0.21253115]
[1643974854719,0.05,37952.0,37947.0,0.21150105]
[1643974855018,0.05,37952.0,37948.0,0.00103009]
[1643974855218,0.05,37952.0,37948.0,0.0012342]
[1643974855419,0.05,37952.0,37948.0,0.00103009]
[1643974855618,0.04989395,37952.0,37948.0,0.00113614]
[1643974856019,0.04989395,37952.0,37948.0,0.00010605]
[1643974856219,0.04989395,37952.0,37948.0,0.00113613]
[1643974856419,0.48328974,37953.0,37948.0,0.00113613]
[1643974856821,0.04989395,37951.0,37949.0,0.78932802]
[1643974857024,0.346872,37950.0,37949.0,0.78953213]
[1643974857873,0.346872,37950.0,37949.0,0.83953213]
[1643974858169,0.04989395,37951.0,37949.0,0.83953213]
[1643974858370,0.346872,37950.0,37949.0,0.83953213]
[1643974858770,0.04989395,37951.0,37949.0,0.83953213]
[1643974859569,0.12817573,37951.0,37949.0,0.83953213]
[1643974860470,0.346872,37950.0,37949.0,0.83953213]
[1643974860670,0.04989395,37951.0,37949.0,0.83953213]
[1643974862726,0.04989395,37951.0,37950.0,0.00010605]
[1643974862925,0.34989395,37951.0,37950.0,0.00020411]
[1643974863125,0.34989395,37951.0,37949.0,0.83963818]
[1643974863426,0.34989395,37951.0,37949.0,0.84046414]
[1643974864428,0.34989395,37951.0,37949.0,0.83943407]
[1643974864628,0.346872,37950.0,37949.0,0.83943407]
[1643974864831,0.04989395,37951.0,37949.0,0.83963818]
[1643974865877,0.04989395,37951.0,37949.0,0.83943407]
[1643974866077,0.04989395,37951.0,37949.0,0.83963818]
[1643974866981,0.04989395,37951.0,37949.0,0.83943407]
[1643974867180,0.04989395,37951.0,37950.0,0.346872]
[1643974867381,0.04989395,37951.0,37950.0,0.34707611]
[1643974869520,0.1242,37954.0,37950.0,0.34718216]
[1643974869720,0.1742,37954.0,37953.0,0.00010605]
[1643974869922,0.746872,37954.0,37953.0,0.00010605]
[1643974870922,0.746872,37954.0,37953.0,0.00031016]
[1643974871123,0.746872,37954.0,37953.0,0.00010605]
[1643974871323,0.746872,37954.0,37953.0,0.00031016]
[1643974871523,0.746872,37954.0,37953.0,0.00010605]
[1643974871925,0.746872,37954.0,37953.0,0.00031016]
[1643974872124,0.79676595,37954.0,37953.0,0.00010605]
[1643974872323,0.79676595,37954.0,37953.0,0.00031016]
[1643974872576,0.79676595,37954.0,37953.0,0.00010605]
[1643974872773,0.79676595,37954.0,37953.0,0.00031016]
[1643974872973,0.79676595,37954.0,37952.0,0.00123414]
[1643974873173,0.79676595,37954.0,37953.0,0.00010605]
[1643974873375,0.746872,37954.0,37952.0,0.00103003]
[1643974873577,0.4,37954.0,37952.0,0.00123414]
[1643974873775,0.846872,37953.0,37952.0,0.00123414]
[1643974873975,0.846872,37953.0,37952.0,0.00020411]
[1643974874175,0.5,37953.0,37951.0,0.34800809]
[1643974874580,0.39989395,37952.0,37951.0,0.39800809]
[1643974874976,0.39989395,37952.0,37951.0,0.39790204]
[1643974875277,0.39989395,37952.0,37951.0,0.39707611]
[1643974875477,0.04989395,37952.0,37951.0,0.39707611]
[1643974875877,0.04989395,37952.0,37951.0,0.34707611]
[1643974876421,0.04979395,37952.0,37951.0,0.34707611]
[1643974876620,0.04979395,37952.0,37951.0,0.346872]
[1643974876820,0.04979395,37952.0,37951.0,0.34707611]
[1643974877224,0.04979395,37952.0,37951.0,0.39707611]
[1643974877922,0.04979395,37952.0,37951.0,0.396872]
[1643974878121,0.04979395,37952.0,37951.0,0.39707611]
[1643974878322,0.04979395,37952.0,37951.0,0.05020411]
[1643974878721,0.04979395,37952.0,37951.0,0.00020411]
[1643974878922,0.04979395,37952.0,37951.0,0.346872]
[1643974879122,0.04979395,37954.0,37951.0,0.34707611]
[1643974879324,0.346872,37955.0,37951.0,0.05041016]
[1643974879525,0.04979395,37952.0,37951.0,0.05020411]
[1643974879725,0.25599547,37956.0,37951.0,0.00041016]
[1643974879923,0.05,37954.0,37950.0,0.06127716]
[1643974880177,0.05,37954.0,37952.0,0.0009605]
[1643974881176,0.05,37954.0,37951.0,0.00020414]
[1643974881377,0.25599547,37956.0,37951.0,0.00096051]
[1643974881578,0.05,37952.0,37951.0,0.00096051]
[1643974882381,0.05,37952.0,37950.0,0.00020414]
[1643974882679,0.29382607,37951.0,37950.0,0.34783253]
[1643974882878,0.29382607,37951.0,37950.0,0.34803667]
[1643974883580,0.29382607,37951.0,37950.0,0.34707614]
[1643974884220,0.29382607,37951.0,37950.0,0.39707614]
[1643974888171,0.29382607,37951.0,37950.0,0.39207614]
[1643974888970,0.29347506,37951.0,37950.0,0.39207614]
[1643974893927,0.29347506,37951.0,37950.0,0.391872]
[1643974895577,0.27524849,37951.0,37950.0,0.60342608]
[1643974895774,0.27524849,37951.0,37950.0,0.391872]
[1643974895971,0.27524849,37951.0,37950.0,0.60363015]
[1643974896172,0.27524849,37951.0,37950.0,0.39207607]
[1643974896173,0.31650344,37951.0,37950.0,0.39207607]
[1643974896372,0.31650344,37951.0,37950.0,0.60363015]
[1643974896573,0.31650344,37951.0,37950.0,0.39207607]
[1643974896773,0.31650344,37951.0,37950.0,0.60363015]
[1643974900837,0.31650344,37951.0,37950.0,0.60342608]
[1643974901135,0.31650344,37951.0,37950.0,0.60842608]
[1643974903672,0.18050146,37951.0,37950.0,0.60842608]
[1643974903873,0.04125495,37951.0,37950.0,0.60842608]
[1643974905475,0.44125495,37951.0,37950.0,0.60842608]
[1643974906524,0.04125495,37951.0,37950.0,0.26155408]
[1643974906724,0.04125495,37951.0,37950.0,0.60842608]
[1643974906924,0.04125495,37951.0,37950.0,0.392732]
[1643974907324,0.04125495,37951.0,37950.0,0.60428608]
[1643974907526,0.04125495,37951.0,37950.0,0.392732]
[1643974907828,0.04125495,37951.0,37950.0,0.40147705]
[1643974908428,0.04125495,37951.0,37950.0,0.80395845]
[1643974910570,0.03625495,37951.0,37950.0,0.80895845]
[1643974911371,0.03625495,37951.0,37950.0,1.07153659]
[1643974911673,0.22196987,37958.0,37952.0,0.04579348]
[1643974911871,0.22196987,37958.0,37952.0,0.11166048]
[1643974912072,0.065869,37961.0,37952.0,0.16166048]
[1643974912276,0.3932,37962.0,37954.0,0.05]
[1643974912672,0.05,37962.0,37954.0,0.05096488]
[1643974912872,0.419,37963.0,37955.0,1.98111877]
[1643974913173,0.5393204,37963.0,37957.0,0.346872]
[1643974913575,0.5393204,37963.0,37957.0,0.396872]
[1643974913830,0.31911477,37963.0,37957.0,0.05]
[1643974914026,0.31911477,37963.0,37957.0,0.065856]
[1643974914226,0.31911477,37963.0,37957.0,0.412728]
[1643974915827,0.26911477,37963.0,37957.0,0.412728]
[1643974916031,0.26911477,37963.0,37957.0,0.065856]
[1643974916344,0.346872,37962.0,37957.0,0.065856]
[1643974916831,0.10096463,37965.0,37960.0,0.05]
[1643974916832,0.00096463,37965.0,37960.0,0.05]
[1643974917032,0.00096463,37965.0,37962.0,0.05]
[1643974917235,0.5847,37967.0,37962.0,0.05]
[1643974917429,0.00096466,37965.0,37963.0,0.346872]
[1643974917678,0.00096466,37965.0,37964.0,0.25434465]
[1643974917877,0.00096466,37965.0,37964.0,0.65121665]
[1643974918276,0.00096466,37965.0,37964.0,0.70121665]
[1643974918477,0.36458913,37974.0,37965.0,0.412709]
[1643974918777,0.02495648,37972.0,37966.0,0.1]
[1643974919275,0.00385806,37972.0,37966.0,0.43821046]
[1643974919476,0.00385806,37972.0,37968.0,0.065836]
[1643974919675,0.346872,37973.0,37968.0,0.065836]
[1643974919879,0.0009646,37971.0,37967.0,0.1]
[1643974920174,0.0009646,37971.0,37968.0,0.346872]
[1643974920374,0.0009646,37971.0,37969.0,0.06583681]
[1643974920776,0.05,37973.0,37969.0,0.06583681]
[1643974920975,0.00096459,37972.0,37969.0,0.06583681]
[1643974921427,0.00096459,37972.0,37970.0,0.26846714]
[1643974921826,0.00096459,37972.0,37970.0,0.31846714]
[1643974922125,0.346872,37974.0,37970.0,0.31846714]
[1643974922325,0.00096458,37973.0,37970.0,0.31846714]
[1643974922525,0.05096458,37973.0,37970.0,0.31846714]
[1643974922726,0.00096458,37973.0,37970.0,0.31846714]
[1643974923124,0.05,37976.0,37970.0,0.31846714]
[1643974923324,0.00096457,37973.0,37970.0,0.31846714]
[1643974923725,0.065835,37972.0,37970.0,0.05]
[1643974924128,0.065835,37972.0,37965.0,0.5116753]
[1643974924326,0.065835,37972.0,37966.0,0.346872]
[1643974924527,0.065835,37972.0,37967.0,0.28030194]
[1643974924725,0.0009646,37970.0,37967.0,0.33030194]
[1643974924927,0.0668036,37970.0,37969.0,0.346872]
[1643974925386,0.4509646,37970.0,37969.0,0.396872]
[1643974925588,0.5,37970.0,37969.0,0.396872]
[1643974925786,0.05,37970.0,37969.0,0.346867]
[1643974925987,0.05096459,37971.0,37969.0,0.346867]
[1643974926185,0.00096459,37971.0,37969.0,0.346867]
[1643974926587,0.05,37970.0,37969.0,0.346867]
[1643974927189,0.05,37970.0,37969.0,0.396867]
[1643974927389,0.1,37970.0,37969.0,0.396867]
[1643974928922,0.05,37970.0,37969.0,0.396867]
[1643974929526,0.1,37970.0,37969.0,0.396867]
[1643974930124,0.1,37970.0,37969.0,0.05]
[1643974930324,0.065849,37969.0,37963.0,0.35057214]
[1643974930525,0.2263243,37967.0,37964.0,0.346867]
[1643974930725,0.08622835,37971.0,37964.0,0.61568202]
[1643974930926,0.05,37966.0,37964.0,0.61568202]
[1643974931126,0.05,37966.0,37965.0,0.2824022]
[1643974931326,0.05,37966.0,37965.0,0.3984192]
[1643974931929,0.05,37966.0,37965.0,0.18185803]
[1643974932582,0.05,37966.0,37965.0,0.116017]
[1643974937128,0.00096464,37967.0,37965.0,0.116017]
[1643974937325,0.00096464,37967.0,37966.0,0.346849]
[1643974937526,0.115845,37969.0,37966.0,0.346849]
[1643974937926,0.05,37967.0,37966.0,0.346849]
[1643974939127,0.24294842,37967.0,37966.0,0.346849]
[1643974939529,0.65567342,37967.0,37961.0,0.21155408]
[1643974939731,0.9,37962.0,37956.0,0.23314864]
[1643974939929,0.9,37962.0,37956.0,0.2321837]
[1643974940177,0.9,37962.0,37957.0,0.346867]
[1643974940379,0.08949479,37961.0,37958.0,0.066104]
[1643974940580,0.05,37959.0,37956.0,0.02159447]
[1643974940777,0.065863,37960.0,37957.0,0.346867]
[1643974940978,0.05,37958.0,37956.0,0.02159447]
[1643974941177,0.05,37958.0,37956.0,0.02062962]
[1643974941376,0.05,37958.0,37956.0,0.00096484]
[1643974941976,0.05,37958.0,37957.0,0.066129]
[1643974942178,0.4,37958.0,37957.0,0.066129]
[1643974942380,0.4,37958.0,37953.0,0.42907023]
[1643974942576,0.35,37958.0,37956.0,0.00096484]
[1643974943278,0.05,37957.0,37956.0,0.00096484]
[1643974943677,0.05,37957.0,37955.0,0.05]
[1643974943928,0.05,37957.0,37956.0,0.346867]
[1643974948977,1.6,37957.0,37956.0,0.346867]
[1643974949179,1.6,37957.0,37955.0,0.00096486]
[1643974949180,1.90046781,37957.0,37955.0,0.00096486]
[1643974949379,2.1045263,37956.0,37955.0,0.00096486]
[1643974949576,2.1045263,37956.0,37949.0,0.78932802]
[1643974949787,1.7576593,37956.0,37954.0,0.00096487]
[1643974949979,1.76106655,37955.0,37954.0,0.00096487]
[1643974950187,0.46268527,37955.0,37954.0,0.00096487]
[1643974950378,0.04993527,37955.0,37954.0,0.34783187]
[1643974950978,0.04993527,37955.0,37954.0,0.346867]
[1643974951179,0.04993527,37955.0,37954.0,0.396867]
[1643974952426,0.04993527,37955.0,37954.0,2.68433117]
[1643974953127,0.04993527,37955.0,37954.0,0.396867]
[1643974956190,0.182866,37960.0,37954.0,0.67023317]
[1643974956191,0.065866,37960.0,37954.0,0.67023317]
[1643974956391,0.04993527,37964.0,37954.0,0.92525617]
[1643974956591,0.04993527,37964.0,37955.0,0.0525]
[1643974956791,0.04993527,37964.0,37956.0,0.30053254]
[1643974956990,0.04993527,37964.0,37956.0,0.3014974]
[1643974957194,0.10479306,37963.0,37960.0,0.1316959]
[1643974957392,0.10479306,37963.0,37960.0,0.1975449]
[1643974957591,0.10479306,37963.0,37962.0,0.21363908]
[1643974957791,0.04993527,37964.0,37962.0,0.26363908]
[1643974958291,0.04993527,37964.0,37960.0,0.2475449]
[1643974958493,0.04993527,37964.0,37961.0,0.065845]
[1643974958927,0.13555137,37964.0,37961.0,0.065845]
[1643974959427,0.13555137,37964.0,37962.0,0.396867]
[1643974959829,0.18555137,37964.0,37963.0,0.2988371]
[1643974960028,0.18555137,37964.0,37962.0,0.05]
[1643974960732,0.13555137,37964.0,37962.0,0.05]
[1643974960927,0.13555137,37964.0,37962.0,0.24061808]
[1643974961128,0.13555137,37964.0,37962.0,0.05]
[1643974962430,0.13555137,37964.0,37959.0,0.06585582]
[1643974962677,0.0856161,37964.0,37960.0,0.346867]
[1643974962876,0.04993527,37961.0,37960.0,0.396867]
[1643974964077,0.04993527,37961.0,37960.0,0.05]
[1643974964277,0.04993527,37961.0,37959.0,0.05]
[1643974964477,0.04993527,37961.0,37960.0,0.346867]
[1643974964678,0.04993527,37961.0,37960.0,0.396867]
[1643974964875,0.04993527,37961.0,37960.0,0.05]
[1643974965377,0.30257409,37960.0,37959.0,0.346867]
[1643974965880,0.30257409,37960.0,37956.0,0.05096487]
[1643974965881,0.35257409,37960.0,37956.0,0.00096487]
[1643974966076,0.04993527,37957.0,37956.0,0.00096487]
[1643974966329,0.04993527,37957.0,37956.0,0.06707587]
[1643974966630,0.30987047,37957.0,37956.0,0.066111]
[1643974967828,0.30987047,37957.0,37956.0,0.061111]
[1643974968928,0.04993527,37957.0,37956.0,0.061111]
[1643974970176,0.28832253,37957.0,37956.0,0.061111]
[1643974971577,0.04993527,37957.0,37956.0,0.061111]
[1643974972578,0.24573008,37957.0,37956.0,0.061111]
[1643974978577,0.065873,37956.0,37951.0,0.06586937]
[1643974978777,0.065873,37956.0,37955.0,0.00096486]
[1643974978979,0.412772,37956.0,37955.0,0.00096486]
[1643974979778,0.24276485,37954.0,37951.0,0.11586937]
[1643974979979,0.30863785,37954.0,37952.0,0.346899]
[1643974980182,1.04219501,37953.0,37952.0,0.346899]
[1643974980381,1.04219501,37953.0,37948.0,0.00020405]
[1643974980579,0.346899,37952.0,37947.0,0.00020405]
[1643974980781,1.59993527,37950.0,37947.0,0.00020405]
[1643974980983,1.94683427,37950.0,37947.0,0.00020405]
[1643974981181,1.94683427,37950.0,37949.0,0.79029295]
[1643974981182,2.12810065,37950.0,37949.0,0.79029295]
[1643974981442,2.19399365,37950.0,37949.0,0.79029295]
[1643974981645,1.84709465,37950.0,37949.0,0.79029295]
[1643974982043,1.84709465,37950.0,37949.0,0.78932802]
[1643974982444,0.29709465,37950.0,37949.0,0.78932802]
[1643974982744,0.92810065,37950.0,37949.0,0.78932802]
[1643974983144,0.89470958,37950.0,37949.0,0.78932802]
[1643974983545,1.24160858,37950.0,37949.0,0.78932802]
[1643974985779,0.89470958,37950.0,37949.0,0.78932802]
[1643974987180,1.24160858,37950.0,37949.0,0.78932802]
[1643974989029,0.89470958,37950.0,37949.0,0.78932802]
[1643974989432,0.58120165,37950.0,37949.0,0.78932802]
[1643974989632,0.47810065,37950.0,37949.0,0.78932802]
[1643974989932,0.39683427,37950.0,37949.0,0.78932802]
[1643974990128,0.04993527,37950.0,37949.0,1.13622702]
[1643974990732,0.39683427,37950.0,37949.0,0.78932802]
[1643974991532,0.49934863,37950.0,37949.0,0.78932802]
[1643974993578,0.89934863,37950.0,37949.0,0.78932802]
[1643974993778,0.55244963,37950.0,37949.0,1.13622702]
[1643974993979,0.55244963,37950.0,37949.0,0.85049902]
[1643974994179,0.55244963,37950.0,37949.0,1.13622702]
[1643974994379,0.89934863,37950.0,37949.0,0.78932802]
[1643974994583,0.55244963,37950.0,37949.0,1.13622702]
[1643974994780,0.89934863,37950.0,37949.0,0.78932802]
[1643974994983,0.55244963,37950.0,37949.0,1.13622702]
[1643974995181,0.49934863,37950.0,37949.0,0.78932802]
[1643974997526,1.37982582,37950.0,37949.0,0.78932802]
[1643974997728,1.03292682,37950.0,37949.0,0.78932802]
[1643974997928,0.53292682,37950.0,37949.0,0.18471133]
[1643974998129,0.49934863,37950.0,37949.0,0.18471133]
[1643974998726,0.39683427,37950.0,37949.0,0.18471133]
[1643974999732,0.39683427,37950.0,37949.0,0.23471133]
[1643974999931,0.04993527,37950.0,37949.0,0.23471133]
[1643975000186,0.04993527,37950.0,37949.0,0.58161033]
[1643975000782,0.04993527,37950.0,37949.0,0.53161033]
[1643975001587,0.04993527,37957.0,37949.0,1.17008074]
[1643975001787,0.04993527,37957.0,37950.0,0.113664]
[1643975001985,0.04993527,37957.0,37951.0,0.30252024]
[1643975002189,0.04993527,37957.0,37952.0,0.399371]
[1643975002488,0.117,37961.0,37952.0,0.46523254]
[1643975002489,0.04993527,37955.0,37952.0,0.46523254]
[1643975002784,0.04993527,37955.0,37953.0,0.00096489]
[1643975002984,0.04993527,37955.0,37954.0,0.061156]
[1643975003830,0.04993527,37955.0,37954.0,0.36055719]
[1643975004030,0.04993527,37955.0,37954.0,0.41055719]
[1643975004231,0.346899,37960.0,37957.0,0.065855]
[1643975004632,0.04993527,37958.0,37957.0,0.065855]
[1643975004833,0.04993527,37958.0,37956.0,0.11585351]
[1643975005038,0.04993527,37958.0,37956.0,0.11681836]
[1643975005233,0.04993527,37958.0,37957.0,0.27022093]
[1643975005432,0.04993527,37958.0,37956.0,0.11681836]
[1643975006032,0.04993527,37958.0,37956.0,0.18171051]
[1643975007584,0.04993527,37958.0,37956.0,0.11585351]
[1643975007777,0.04993527,37958.0,37956.0,0.3832658]
[1643975007977,0.04993527,37958.0,37956.0,0.11585351]
[1643975008178,0.04993527,37958.0,37956.0,0.05]
[1643975008478,0.04993527,37958.0,37954.0,0.05]
[1643975008678,0.05,37960.0,37955.0,0.00096485]
[1643975008878,0.04993527,37958.0,37955.0,0.00096485]
[1643975009680,0.04993527,37958.0,37954.0,0.3146199]
[1643975009880,0.04993527,37958.0,37955.0,0.00096486]
[1643975010978,0.04993527,37958.0,37954.0,0.05]
[1643975011179,0.04993527,37958.0,37955.0,0.00096486]
[1643975011633,0.27001338,37956.0,37955.0,0.00096486]
[1643975012030,0.27001338,37956.0,37954.0,0.05]
[1643975012230,0.27001338,37956.0,37954.0,0.05096487]
[1643975012638,0.74993527,37955.0,37954.0,0.00096487]
[1643975012834,0.04784608,37955.0,37954.0,0.00096487]
[1643975013235,0.04784608,37955.0,37953.0,0.00215392]
[1643975013236,0.39474508,37955.0,37953.0,0.00215392]
[1643975013436,0.39474508,37955.0,37953.0,0.0031188]
[1643975013638,0.46061608,37955.0,37953.0,0.0031188]
[1643975013836,0.696899,37954.0,37953.0,0.0031188]
[1643975014237,0.346899,37954.0,37953.0,0.0031188]
[1643975014447,0.346899,37954.0,37953.0,0.00215392]
[1643975014637,0.27001338,37956.0,37953.0,0.00215392]
[1643975014838,0.27001338,37956.0,37955.0,0.00215392]
[1643975015102,0.61691238,37956.0,37955.0,0.00215392]
[1643975015696,0.66691238,37956.0,37955.0,0.00215392]
[1643975015897,0.61691238,37956.0,37955.0,0.00215392]
[1643975016097,0.346899,37956.0,37955.0,0.00215392]
[1643975016297,0.04784608,37957.0,37955.0,0.00215392]
[1643975016697,0.04784608,37957.0,37954.0,0.06682541]
[1643975016900,0.04784608,37957.0,37956.0,0.00215392]
[1643975017298,0.39474508,37957.0,37956.0,0.00215392]
[1643975017698,0.346899,37957.0,37956.0,0.00215392]
[1643975017903,0.4388302,37962.0,37956.0,0.00215392]
[1643975018100,0.0919312,37962.0,37955.0,0.13170315]
[1643975018299,0.04784608,37960.0,37956.0,0.00215392]
[1643975019033,0.26104271,37958.0,37957.0,0.00215392]
[1643975019233,0.61104271,37958.0,37957.0,0.00215392]
[1643975019433,0.26104271,37958.0,37955.0,0.17982192]
[1643975019635,0.26104271,37958.0,37956.0,0.346899]
[1643975020633,0.26104271,37958.0,37955.0,0.17982192]
[1643975021838,0.26104271,37958.0,37957.0,0.061083]
[1643975024785,0.31104271,37958.0,37955.0,0.17982192]
[1643975024985,0.31104271,37958.0,37956.0,0.346899]
[1643975025983,0.31104271,37958.0,37954.0,0.00102928]
[1643975026183,0.31104271,37958.0,37955.0,0.396899]
[1643975026431,0.05,37958.0,37955.0,0.05]
[1643975026631,0.05,37958.0,37956.0,0.346899]
[1643975026834,0.05,37958.0,37957.0,0.061082]
[1643975027231,0.05,37958.0,37954.0,0.11688964]
[1643975027433,0.05,37958.0,37955.0,0.346899]
[1643975028335,0.05,37958.0,37954.0,0.11688964]
[1643975028934,0.05,37958.0,37954.0,0.11586036]
[1643975029135,0.05,37958.0,37954.0,0.11682015]
[1643975029735,0.00095966,37959.0,37954.0,0.05095979]
[1643975029936,0.00095966,37959.0,37955.0,0.61253128]
[1643975030179,0.05,37961.0,37955.0,0.61253128]
[1643975030379,0.00095967,37959.0,37955.0,0.61253128]
[1643975030982,0.00095967,37959.0,37955.0,0.33148748]
[1643975031180,0.05,37958.0,37955.0,0.33148748]
[1643975031478,0.05,37958.0,37956.0,0.061075]
[1643975031879,0.00095968,37959.0,37957.0,0.27611893]
[1643975032080,0.00095968,37959.0,37957.0,0.06585383]
[1643975032579,0.30848137,37961.0,37957.0,0.06585383]
[1643975032580,0.05,37958.0,37957.0,0.41275283]
[1643975033179,0.00095967,37960.0,37957.0,0.06585383]
[1643975033582,0.00095967,37960.0,37956.0,0.05]
[1643975033583,0.05,37958.0,37956.0,0.05]
[1643975033833,0.05,37958.0,37954.0,0.05096452]
[1643975034032,0.00096436,37960.0,37954.0,0.05096452]
[1643975034234,0.05,37955.0,37954.0,0.00096452]
[1643975034434,0.05,37955.0,37954.0,0.34786352]
[1643975034635,0.34550993,37955.0,37954.0,0.34786352]
[1643975034836,0.29550993,37955.0,37954.0,0.396899]
[1643975035438,0.29550993,37955.0,37954.0,0.05]
[1643975035637,0.29550993,37955.0,37954.0,0.396899]
[1643975036640,1.55,37954.0,37953.0,0.0009645]
[1643975036843,1.55,37954.0,37949.0,0.18491538]
[1643975036844,1.41440964,37953.0,37949.0,0.18491538]
[1643975037042,0.85,37950.0,37949.0,0.18491538]
[1643975037241,1.196904,37950.0,37949.0,0.18491538]
[1643975037440,0.396904,37950.0,37949.0,0.18491538]
[1643975037684,0.50067206,37950.0,37949.0,0.18491538]
[1643975037985,0.396904,37950.0,37949.0,0.18471133]
[1643975038181,0.05,37950.0,37949.0,0.18471133]
[1643975038584,0.396904,37950.0,37949.0,0.18471133]
[1643975039788,0.05,37952.0,37949.0,0.24583633]
[1643975039986,0.05,37952.0,37950.0,0.061121]
[1643975040385,0.05,37952.0,37950.0,1.80842715]
[1643975040787,0.05,37952.0,37949.0,0.18471133]
[1643975040988,0.12478006,37954.0,37949.0,0.18471133]
[1643975041187,0.05,37950.0,37949.0,0.18573995]
[1643975041434,0.05,37950.0,37949.0,0.24686195]
[1643975041633,0.11822841,37957.0,37949.0,0.61298636]
[1643975041834,0.00102841,37957.0,37951.0,0.065863]
[1643975042032,0.00102841,37957.0,37952.0,0.41049746]